[Event "Jeux du Barreau 2019"]
[Site "Paris, France"]
[Date "2019.07.10"]
[Round "5.1"]
[White "Chanel, Virgile"]
[Black "Mungunkhuu, Mijgee"]
[Result "0-1"]
[TimeControl "15+3"]
[WhiteElo "1991"]
[BlackElo "2219"]

1. e4 {[%clk 00:14:52]} {[%emt 00:00:02]} d6 {[%clk 00:15:05]} {[%emt
00:00:01]} 2. d4 {[%clk 00:14:53]} {[%emt 00:00:02]} Nd7 {[%clk 00:15:08]} 3.
Nf3 {[%clk 00:14:05]} {[%emt 00:00:52]} c6 {[%clk 00:15:10]} {[%emt 00:00:02]}
4. a4 {[%clk 00:14:03]} {[%emt 00:00:04]} e5 {[%clk 00:15:05]} {[%emt
00:00:08]} 5. dxe5 {[%clk 00:13:41]} {[%emt 00:00:26]} dxe5 {[%clk 00:15:06]}
{[%emt 00:00:02]} 6. Bc4 {[%clk 00:13:42]} {[%emt 00:00:01]} Be7 {[%clk
00:15:06]} {[%emt 00:00:03]} 7. O-O {[%clk 00:13:23]} {[%emt 00:00:22]} h6
{[%clk 00:15:01]} {[%emt 00:00:07]} 8. a5 {[%clk 00:12:56]} {[%emt 00:00:31]}
Qc7 {[%clk 00:15:02]} {[%emt 00:00:02]} 9. Re1 {[%clk 00:12:45]} {[%emt
00:00:13]} Ngf6 {[%clk 00:15:03]} {[%emt 00:00:02]} 10. Nbd2 {[%clk 00:12:36]}
{[%emt 00:00:12]} O-O {[%clk 00:15:03]} {[%emt 00:00:03]} 11. Nf1 {[%clk
00:12:37]} {[%emt 00:00:02]} Nc5 {[%clk 00:14:59]} {[%emt 00:00:07]} 12. Ng3
{[%clk 00:12:26]} {[%emt 00:00:14]} Bd7 {[%clk 00:14:44]} {[%emt 00:00:18]} 13.
c3 {[%clk 00:12:12]} {[%emt 00:00:17]} b5 {[%clk 00:14:43]} {[%emt 00:00:04]}
14. axb6 {[%clk 00:12:14]} {[%emt 00:00:02]} axb6 {[%clk 00:14:43]} {[%emt
00:00:02]} 15. Rxa8 {[%clk 00:12:06]} {[%emt 00:00:11]} Rxa8 {[%clk 00:14:45]}
{[%emt 00:00:01]} 16. b4 {[%clk 00:11:55]} {[%emt 00:00:14]} Na4 {[%clk
00:14:22]} {[%emt 00:00:25]} 17. Qb3 {[%clk 00:11:26]} {[%emt 00:00:32]} Be8
{[%clk 00:14:24]} {[%emt 00:00:01]} 18. Nf5 {[%clk 00:11:15]} {[%emt 00:00:14]}
Bf8 {[%clk 00:14:18]} {[%emt 00:00:09]} 19. h3 {[%clk 00:10:24]} b5 {[%clk
00:14:19]} {[%emt 00:00:57]} 20. Bd3 {[%clk 00:10:08]} Bd7 {[%clk 00:14:19]}
{[%emt 00:00:21]} 21. g4 {[%clk 00:09:02]} Be6 {[%clk 00:14:20]} {[%emt
00:01:11]} 22. Qc2 {[%clk 00:09:04]} Nh7 {[%clk 00:13:31]} {[%emt 00:00:53]} 23.
Bd2 {[%clk 00:07:58]} Nb6 {[%clk 00:13:28]} {[%emt 00:01:16]} 24. g5 {[%clk
00:07:08]} hxg5 {[%clk 00:13:28]} {[%emt 00:00:55]} 25. Bxg5 {[%clk 00:06:44]}
Nc4 {[%clk 00:13:00]} {[%emt 00:00:59]} 26. Qc1 {[%clk 00:05:24]} c5 {[%clk
00:12:40]} {[%emt 00:01:46]} 27. Bxc4 {[%clk 00:04:53]} Bxc4 {[%clk 00:12:27]}
{[%emt 00:00:50]} 28. bxc5 {[%clk 00:04:37]} Bxc5 {[%clk 00:12:22]} {[%emt
00:00:27]} 29. Be3 {[%clk 00:04:38]} Bf8 {[%clk 00:11:58]} {[%emt 00:00:28]} 30.
Ng5 {[%clk 00:03:50]} Nxg5 {[%clk 00:11:18]} {[%emt 00:01:35]} 31. Bxg5 {[%clk
00:03:51]} f6 {[%clk 00:11:19]} {[%emt 00:00:03]} 32. Be3 {[%clk 00:03:49]} Qb7
{[%clk 00:11:08]} {[%emt 00:00:19]} 33. f3 {[%clk 00:03:47]} Be6 {[%clk
00:11:08]} {[%emt 00:00:08]} 34. Qd1 {[%clk 00:02:29]} Qc8 {[%clk 00:10:55]}
{[%emt 00:01:38]} 35. Nd6 {[%clk 00:02:10]} Qc6 {[%clk 00:10:47]} {[%emt
00:00:32]} 36. Nf5 {[%clk 00:01:56]} Qxc3 {[%clk 00:10:47]} {[%emt 00:00:19]}
37. Bd2 {[%clk 00:01:22]} Qc8 {[%clk 00:10:38]} {[%emt 00:00:49]} 38. Qb1
{[%clk 00:01:18]} Ra3 {[%clk 00:10:18]} {[%emt 00:00:30]} 39. Kg2 {[%clk
00:01:04]} Rb3 {[%clk 00:10:17]} {[%emt 00:00:21]} 40. Qc1 {[%clk 00:00:47]}
Bxf5 {[%clk 00:10:06]} {[%emt 00:00:34]} 41. exf5 {[%clk 00:00:49]} Qxf5 {[%clk
00:10:06]} {[%emt 00:00:04]} 42. Be3 {[%clk 00:00:42]} Qd3 {[%clk 00:09:48]}
{[%emt 00:00:30]} 43. Kf2 {[%clk 00:00:29]} Rc3 {[%clk 00:09:45]} {[%emt
00:00:24]} 44. Qd2 {[%clk 00:00:31]} Rc2 {[%emt 00:00:05]} 0-1

[Event "Jeux du Barreau 2019"]
[Site "Paris, France"]
[Date "2019.07.10"]
[Round "5.2"]
[White "Vandeweeghe, Simon"]
[Black "Sainson, Michael"]
[Result "1-0"]
[TimeControl "15+3"]
[WhiteElo "2036"]
[BlackElo "1584"]

1. d4 {[%clk 00:15:04]} {[%emt 00:00:01]} d5 {[%clk 00:15:06]} {[%emt
00:00:01]} 2. Nf3 {[%clk 00:15:03]} {[%emt 00:00:03]} Nf6 {[%clk 00:15:04]} 3.
g3 {[%clk 00:15:03]} {[%emt 00:00:08]} e6 {[%emt 00:00:13]} 4. Bg2 {[%clk
00:15:04]} Be7 {[%clk 00:14:53]} {[%emt 00:00:05]} 5. c4 {[%clk 00:15:04]}
{[%emt 00:00:04]} dxc4 {[%clk 00:14:52]} {[%emt 00:00:03]} 6. O-O {[%clk
00:13:45]} {[%emt 00:01:22]} O-O {[%clk 00:14:53]} {[%emt 00:00:02]} 7. Na3
{[%clk 00:13:15]} {[%emt 00:00:33]} Bxa3 {[%clk 00:14:34]} {[%emt 00:00:22]} 8.
bxa3 {[%clk 00:13:17]} {[%emt 00:00:02]} Nbd7 {[%clk 00:13:55]} {[%emt
00:00:42]} 9. Qc2 {[%clk 00:12:51]} {[%emt 00:00:29]} Nb6 {[%clk 00:12:03]}
{[%emt 00:01:55]} 10. e4 {[%clk 00:08:05]} {[%emt 00:04:48]} h6 {[%clk
00:11:06]} {[%emt 00:01:00]} 11. e5 {[%clk 00:07:33]} {[%emt 00:00:35]} Nfd5
{[%clk 00:09:50]} {[%emt 00:01:19]} 12. Nd2 {[%clk 00:07:02]} {[%emt 00:00:34]}
Ne7 {[%clk 00:08:41]} {[%emt 00:01:12]} 13. Bb2 {[%clk 00:05:41]} {[%emt
00:01:24]} Nf5 {[%clk 00:08:09]} {[%emt 00:00:35]} 14. Nf3 {[%clk 00:03:06]}
{[%emt 00:02:37]} Bd7 {[%clk 00:06:28]} {[%emt 00:01:45]} 15. Rac1 {[%clk
00:02:21]} {[%emt 00:00:48]} Bc6 {[%clk 00:06:14]} {[%emt 00:00:17]} 16. g4
{[%clk 00:01:16]} {[%emt 00:01:08]} Bxf3 {[%clk 00:06:10]} {[%emt 00:00:07]} 17.
Bxf3 {[%clk 00:01:17]} {[%emt 00:00:02]} Nxd4 {[%clk 00:06:02]} {[%emt
00:00:11]} 18. Bxd4 {[%clk 00:01:16]} {[%emt 00:00:04]} Qxd4 {[%clk 00:06:03]}
{[%emt 00:00:02]} 19. Bxb7 {[%clk 00:01:11]} {[%emt 00:00:07]} Qxg4+ {[%clk
00:05:29]} {[%emt 00:00:37]} 20. Kh1 {[%clk 00:01:13]} {[%emt 00:00:02]} Rad8
{[%clk 00:04:51]} {[%emt 00:00:41]} 21. Rg1 {[%clk 00:01:05]} {[%emt 00:00:10]}
Qf5 {[%clk 00:03:53]} {[%emt 00:01:01]} 22. Be4 {[%clk 00:00:44]} {[%emt
00:00:24]} Qxe5 {[%clk 00:03:44]} {[%emt 00:00:12]} 23. Rg3 {[%clk 00:00:36]}
{[%emt 00:00:11]} Rd4 {[%clk 00:02:52]} {[%emt 00:00:56]} 24. Bf3 {[%clk
00:00:19]} {[%emt 00:00:20]} Rd3 {[%clk 00:01:46]} {[%emt 00:01:09]} 25. Rcg1
{[%clk 00:00:15]} {[%emt 00:00:06]} Qf6 {[%clk 00:01:22]} {[%emt 00:00:27]} 26.
Rxg7+ {[%clk 00:00:06]} {[%emt 00:00:12]} Qxg7 {[%clk 00:01:05]} {[%emt
00:00:20]} 27. Rxg7+ {[%clk 00:00:08]} {[%emt 00:00:01]} Kxg7 {[%clk 00:01:06]}
28. Be2 {[%clk 00:00:10]} {[%emt 00:00:02]} Rd5 {[%clk 00:00:50]} {[%emt
00:00:19]} 29. Bxc4 {[%clk 00:00:10]} {[%emt 00:00:04]} Nxc4 {[%clk 00:00:51]}
{[%emt 00:00:02]} 30. Qxc4 {[%clk 00:00:12]} c5 {[%clk 00:00:40]} {[%emt
00:00:13]} 31. Qa6 {[%clk 00:00:14]} {[%emt 00:00:01]} Kh7 {[%clk 00:00:20]}
{[%emt 00:00:23]} 32. Qxa7 {[%clk 00:00:16]} {[%emt 00:00:01]} Rd2 {[%clk
00:00:15]} {[%emt 00:00:08]} 33. Qe7 {[%clk 00:00:17]} {[%emt 00:00:02]} Rg8
{[%clk 00:00:12]} {[%emt 00:00:06]} 34. Qxf7+ {[%clk 00:00:19]} {[%emt
00:00:02]} Rg7 {[%clk 00:00:14]} 35. Qf3 {[%clk 00:00:16]} {[%emt 00:00:06]}
Rxa2 {[%clk 00:00:13]} {[%emt 00:00:04]} 36. h4 {[%clk 00:00:17]} {[%emt
00:00:02]} Ra1+ {[%clk 00:00:15]} {[%emt 00:00:02]} 37. Kh2 {[%clk 00:00:19]}
Rag1 {[%clk 00:00:16]} {[%emt 00:00:02]} 38. h5 {[%clk 00:00:20]} {[%emt
00:00:02]} R7g2+ {[%clk 00:00:13]} {[%emt 00:00:06]} 39. Qxg2 {[%clk 00:00:19]}
{[%emt 00:00:03]} Rxg2+ {[%clk 00:00:16]} {[%emt 00:00:01]} 40. Kxg2 {[%clk
00:00:21]} Kg7 {[%emt 00:00:13]} 41. a4 c4 {[%clk 00:00:07]} {[%emt 00:00:02]}
42. Kf3 {[%clk 00:00:26]} c3 {[%emt 00:00:03]} 43. Ke3 1-0

[Event "Jeux du Barreau 2019"]
[Site "Paris, France"]
[Date "2019.07.10"]
[Round "5.3"]
[White "Levy, David"]
[Black "Aflalo, Sophie"]
[Result "0-1"]
[TimeControl "15+3"]
[WhiteElo "1511"]
[BlackElo "2094"]

1. d4 {[%clk 00:15:02]} {[%emt 00:00:03]} Nf6 {[%clk 00:15:05]} {[%emt
00:00:02]} 2. c4 {[%clk 00:15:02]} {[%emt 00:00:03]} g6 {[%clk 00:15:06]}
{[%emt 00:00:01]} 3. Nc3 {[%clk 00:15:03]} {[%emt 00:00:02]} Bg7 {[%clk
00:15:08]} {[%emt 00:00:01]} 4. e4 {[%clk 00:15:04]} {[%emt 00:00:02]} d6
{[%clk 00:15:10]} 5. h3 {[%clk 00:15:06]} {[%emt 00:00:01]} O-O {[%clk
00:15:01]} {[%emt 00:00:12]} 6. Be3 {[%clk 00:15:02]} {[%emt 00:00:07]} e5
{[%clk 00:14:40]} {[%emt 00:00:24]} 7. Nge2 {[%clk 00:14:28]} {[%emt 00:00:36]}
Nfd7 {[%clk 00:14:10]} {[%emt 00:00:34]} 8. g4 {[%clk 00:13:52]} {[%emt
00:00:39]} exd4 {[%clk 00:13:24]} {[%emt 00:00:49]} 9. Bxd4 {[%clk 00:13:25]}
{[%emt 00:00:30]} Ne5 {[%clk 00:13:23]} {[%emt 00:00:04]} 10. Ng3 {[%clk
00:13:24]} {[%emt 00:00:04]} Nbc6 {[%clk 00:13:22]} {[%emt 00:00:03]} 11. Be3
{[%clk 00:13:22]} {[%emt 00:00:06]} Be6 {[%clk 00:13:17]} {[%emt 00:00:09]} 12.
Nd5 {[%clk 00:12:48]} {[%emt 00:00:36]} Na5 {[%clk 00:13:02]} {[%emt 00:00:18]}
13. Rc1 {[%clk 00:09:43]} {[%emt 00:03:07]} c6 {[%clk 00:12:43]} {[%emt
00:00:23]} 14. f4 {[%clk 00:02:50]} {[%emt 00:06:57]} Nexc4 {[%clk 00:12:36]}
{[%emt 00:00:10]} 15. Bxc4 {[%clk 00:02:49]} {[%emt 00:00:04]} Nxc4 {[%clk
00:12:34]} {[%emt 00:00:05]} 16. Rxc4 {[%clk 00:02:47]} {[%emt 00:00:05]} cxd5
{[%clk 00:12:35]} {[%emt 00:00:02]} 17. exd5 {[%clk 00:02:44]} {[%emt
00:00:03]} Qa5+ {[%clk 00:12:33]} {[%emt 00:00:05]} 18. Kf2 {[%clk 00:02:21]}
{[%emt 00:00:28]} Bxd5 {[%clk 00:12:08]} {[%emt 00:00:28]} 19. Rc2 {[%clk
00:02:08]} {[%emt 00:00:16]} Bxh1 {[%clk 00:12:06]} {[%emt 00:00:05]} 20. Nxh1
{[%clk 00:02:05]} {[%emt 00:00:06]} Rac8 {[%clk 00:11:47]} {[%emt 00:00:22]} 21.
Rd2 {[%clk 00:01:48]} {[%emt 00:00:21]} Qxa2 {[%clk 00:11:39]} {[%emt
00:00:10]} 22. Ng3 {[%clk 00:01:40]} {[%emt 00:00:11]} d5 {[%clk 00:11:33]}
{[%emt 00:00:09]} 23. Ne2 {[%clk 00:01:27]} {[%emt 00:00:16]} Rfe8 {[%clk
00:11:18]} {[%emt 00:00:18]} 24. Nd4 {[%clk 00:01:03]} {[%emt 00:00:27]} Re4
{[%clk 00:10:52]} {[%emt 00:00:29]} 25. f5 {[%clk 00:00:57]} {[%emt 00:00:09]}
Rce8 {[%clk 00:10:48]} {[%emt 00:00:08]} 0-1

[Event "Jeux du Barreau 2019"]
[Site "Paris, France"]
[Date "2019.07.10"]
[Round "5.4"]
[White "Rachid, Danial"]
[Black "Leblic, Maximilien"]
[Result "1-0"]
[TimeControl "15+3"]
[WhiteElo "2020"]
[BlackElo "1289"]

1. e4 {[%clk 00:15:04]} {[%emt 00:00:02]} e5 {[%clk 00:15:03]} {[%emt
00:00:03]} 2. Nf3 {[%clk 00:15:05]} {[%emt 00:00:02]} Nc6 {[%clk 00:15:05]}
{[%emt 00:00:01]} 3. Bb5 {[%clk 00:15:06]} {[%emt 00:00:01]} Nf6 {[%clk
00:15:06]} {[%emt 00:00:01]} 4. O-O {[%clk 00:15:07]} {[%emt 00:00:03]} Bc5
{[%clk 00:14:50]} {[%emt 00:00:20]} 5. d4 {[%clk 00:14:46]} {[%emt 00:00:24]}
Nxd4 {[%clk 00:14:30]} {[%emt 00:00:23]} 6. Nxd4 {[%clk 00:14:43]} {[%emt
00:00:06]} Bxd4 {[%clk 00:14:31]} {[%emt 00:00:01]} 7. Bg5 {[%clk 00:14:30]}
{[%emt 00:00:16]} c6 {[%clk 00:13:57]} {[%emt 00:00:38]} 8. Bc4 {[%clk
00:14:26]} {[%emt 00:00:07]} O-O {[%clk 00:13:28]} {[%emt 00:00:32]} 9. c3
{[%clk 00:14:27]} {[%emt 00:00:02]} Bc5 {[%clk 00:13:09]} {[%emt 00:00:21]} 10.
Nd2 {[%clk 00:14:28]} {[%emt 00:00:02]} b5 {[%clk 00:13:11]} {[%emt 00:00:02]}
11. Bb3 {[%clk 00:14:29]} {[%emt 00:00:02]} a5 {[%clk 00:13:00]} {[%emt
00:00:15]} 12. a4 {[%clk 00:14:20]} {[%emt 00:00:12]} Ba6 {[%clk 00:12:08]}
{[%emt 00:00:54]} 13. Re1 {[%clk 00:14:02]} {[%emt 00:00:20]} h6 {[%clk
00:12:00]} {[%emt 00:00:12]} 14. Bh4 {[%clk 00:14:03]} {[%emt 00:00:01]} d5
{[%clk 00:11:35]} {[%emt 00:00:28]} 15. exd5 {[%clk 00:13:57]} {[%emt
00:00:09]} cxd5 {[%clk 00:11:33]} {[%emt 00:00:05]} 16. Rxe5 {[%clk 00:13:55]}
{[%emt 00:00:04]} Qb6 {[%clk 00:10:49]} {[%emt 00:00:48]} 17. Rf5 {[%clk
00:13:45]} {[%emt 00:00:11]} Ng4 {[%clk 00:09:55]} {[%emt 00:00:59]} 18. Qxg4
{[%clk 00:13:44]} {[%emt 00:00:04]} Kh8 {[%clk 00:09:54]} {[%emt 00:00:04]} 19.
Rxd5 {[%clk 00:13:20]} {[%emt 00:00:28]} bxa4 {[%clk 00:09:40]} {[%emt
00:00:17]} 20. Rxa4 {[%clk 00:13:12]} {[%emt 00:00:11]} Rad8 {[%clk 00:09:27]}
{[%emt 00:00:17]} 21. Bxd8 {[%emt 00:00:23]} Rxd8 {[%clk 00:09:24]} {[%emt
00:00:04]} 22. Re4 {[%clk 00:11:27]} {[%emt 00:01:29]} Rxd5 {[%clk 00:08:31]}
{[%emt 00:00:57]} 23. Re8+ {[%clk 00:11:06]} {[%emt 00:00:24]} Kh7 {[%clk
00:08:30]} {[%emt 00:00:04]} 24. Bxd5 {[%clk 00:11:06]} {[%emt 00:00:03]} Bxf2+
{[%clk 00:08:30]} {[%emt 00:00:03]} 25. Kh1 {[%clk 00:11:08]} {[%emt 00:00:02]}
Qxb2 {[%clk 00:08:26]} {[%emt 00:00:07]} 26. Qf5+ {[%clk 00:11:05]} {[%emt
00:00:05]} g6 {[%clk 00:08:23]} {[%emt 00:00:07]} 27. Qxf7# {[%emt 00:00:02]}
1-0

[Event "Jeux du Barreau 2019"]
[Site "Paris, France"]
[Date "2019.07.10"]
[Round "5.5"]
[White "Gautier, Joel"]
[Black "Abulius, Thomas"]
[Result "1-0"]
[TimeControl "15+3"]
[WhiteElo "1975"]
[BlackElo "1390"]

1. e4 {[%clk 00:15:03]} {[%emt 00:00:02]} d5 {[%clk 00:14:59]} {[%emt
00:00:08]} 2. exd5 {[%clk 00:15:04]} {[%emt 00:00:02]} Qxd5 {[%clk 00:15:01]} 3.
Nc3 {[%clk 00:15:05]} {[%emt 00:00:02]} Qd6 {[%clk 00:15:03]} {[%emt 00:00:01]}
4. d4 {[%clk 00:14:59]} {[%emt 00:00:09]} Nc6 {[%clk 00:14:55]} {[%emt
00:00:11]} 5. Nf3 {[%clk 00:14:27]} {[%emt 00:00:34]} Bg4 {[%clk 00:14:56]}
{[%emt 00:00:02]} 6. Bc4 {[%clk 00:10:21]} {[%emt 00:04:09]} e6 {[%clk
00:13:14]} {[%emt 00:01:45]} 7. O-O {[%clk 00:10:08]} {[%emt 00:00:16]} Nf6
{[%clk 00:12:51]} {[%emt 00:00:26]} 8. h3 {[%clk 00:09:55]} {[%emt 00:00:16]}
Bh5 {[%clk 00:12:50]} {[%emt 00:00:03]} 9. d5 {[%clk 00:06:28]} {[%emt
00:03:32]} exd5 {[%clk 00:12:00]} {[%emt 00:00:53]} 10. Nxd5 {[%clk 00:06:24]}
{[%emt 00:00:07]} Nxd5 {[%clk 00:11:08]} {[%emt 00:00:55]} 11. Bxd5 {[%clk
00:06:15]} {[%emt 00:00:12]} O-O-O {[%clk 00:09:59]} {[%emt 00:01:11]} 12. c4
{[%clk 00:06:06]} {[%emt 00:00:12]} Nb4 {[%clk 00:08:45]} {[%emt 00:01:16]} 13.
Qa4 {[%clk 00:05:31]} {[%emt 00:00:39]} Nxd5 {[%clk 00:08:45]} {[%emt
00:00:03]} 14. cxd5 {[%clk 00:05:31]} {[%emt 00:00:03]} Bxf3 {[%clk 00:08:11]}
{[%emt 00:00:37]} 15. gxf3 {[%clk 00:05:32]} {[%emt 00:00:02]} Qg6+ {[%clk
00:07:25]} {[%emt 00:00:49]} 16. Kh1 {[%clk 00:05:20]} {[%emt 00:00:15]} Qf5
{[%clk 00:07:05]} {[%emt 00:00:23]} 17. Qg4 {[%clk 00:03:29]} {[%emt 00:01:55]}
Qxg4 {[%clk 00:06:36]} {[%emt 00:00:31]} 18. fxg4 {[%clk 00:03:31]} {[%emt
00:00:02]} Rxd5 {[%clk 00:06:29]} {[%emt 00:00:09]} 19. Be3 {[%clk 00:03:32]}
{[%emt 00:00:03]} Bd6 {[%clk 00:05:52]} {[%emt 00:00:39]} 20. Rfc1 {[%clk
00:03:29]} {[%emt 00:00:06]} Kb8 {[%clk 00:05:40]} {[%emt 00:00:15]} 21. a3
{[%clk 00:03:28]} {[%emt 00:00:05]} h5 {[%clk 00:05:38]} {[%emt 00:00:04]} 22.
g5 {[%clk 00:03:05]} {[%emt 00:00:27]} Re8 {[%clk 00:05:14]} {[%emt 00:00:27]}
23. Rc4 {[%clk 00:02:19]} {[%emt 00:00:50]} b5 {[%clk 00:04:12]} {[%emt
00:01:04]} 24. Rc6 {[%clk 00:01:57]} {[%emt 00:00:25]} Re4 {[%clk 00:03:57]}
{[%emt 00:00:18]} 25. Rac1 {[%clk 00:01:48]} {[%emt 00:00:13]} Kb7 {[%clk
00:03:07]} {[%emt 00:00:53]} 26. Kg2 {[%clk 00:01:47]} {[%emt 00:00:04]} Rxe3
{[%clk 00:01:49]} {[%emt 00:01:21]} 27. fxe3 {[%clk 00:01:48]} {[%emt
00:00:03]} Rd2+ {[%clk 00:01:51]} 28. Kf3 {[%clk 00:01:43]} {[%emt 00:00:08]}
Rxb2 {[%clk 00:01:49]} {[%emt 00:00:04]} 29. R1c2 {[%clk 00:01:40]} {[%emt
00:00:06]} Bxa3 {[%clk 00:00:49]} {[%emt 00:01:03]} 30. Rxc7+ {[%clk 00:01:40]}
{[%emt 00:00:04]} Kb6 {[%clk 00:00:47]} {[%emt 00:00:05]} 31. R2c6+ {[%clk
00:01:37]} {[%emt 00:00:06]} Ka5 {[%clk 00:00:47]} {[%emt 00:00:03]} 32. Rxa7+
{[%clk 00:01:38]} {[%emt 00:00:03]} Kb4 {[%clk 00:00:47]} {[%emt 00:00:03]} 33.
Rxf7 {[%clk 00:01:19]} {[%emt 00:00:21]} Rb1 {[%clk 00:00:40]} {[%emt
00:00:10]} 34. Rxg7 {[%clk 00:01:10]} {[%emt 00:00:12]} Rf1+ {[%clk 00:00:29]}
{[%emt 00:00:15]} 35. Ke4 {[%clk 00:01:07]} {[%emt 00:00:05]} Rh1 {[%clk
00:00:10]} {[%emt 00:00:22]} 36. g6 {[%clk 00:00:40]} {[%emt 00:00:30]} Rxh3
{[%clk 00:00:12]} {[%emt 00:00:01]} 37. Rb7 {[%clk 00:00:34]} {[%emt 00:00:09]}
Rg3 {[%emt 00:00:16]} 1-0

[Event "Jeux du Barreau 2019"]
[Site "Paris, France"]
[Date "2019.07.10"]
[Round "5.6"]
[White "Lepetit, Jean Pierre"]
[Black "Spirta, Boris"]
[Result "0-1"]
[TimeControl "15+3"]
[WhiteElo "1078"]
[BlackElo "1811"]

1. e4 {[%clk 00:15:05]} c5 {[%clk 00:15:02]} {[%emt 00:00:05]} 2. Nf3 {[%clk
00:14:58]} {[%emt 00:00:10]} d6 {[%clk 00:15:04]} 3. d4 {[%clk 00:14:59]}
{[%emt 00:00:02]} cxd4 {[%clk 00:15:05]} {[%emt 00:00:01]} 4. Nxd4 {[%clk
00:14:59]} {[%emt 00:00:02]} Nf6 {[%clk 00:14:44]} {[%emt 00:00:25]} 5. Nc3
{[%clk 00:15:00]} {[%emt 00:00:02]} g6 {[%clk 00:14:34]} {[%emt 00:00:12]} 6.
Be3 {[%clk 00:15:00]} {[%emt 00:00:03]} Bg7 {[%clk 00:14:33]} {[%emt 00:00:04]}
7. Qd2 {[%clk 00:14:54]} {[%emt 00:00:10]} Ng4 {[%clk 00:14:26]} {[%emt
00:00:08]} 8. O-O-O {[%clk 00:14:44]} {[%emt 00:00:14]} Nxe3 {[%clk 00:14:25]}
{[%emt 00:00:04]} 9. fxe3 {[%clk 00:14:31]} {[%emt 00:00:16]} O-O {[%clk
00:13:48]} {[%emt 00:00:41]} 10. h3 {[%emt 00:01:01]} Nc6 11. Nde2 {[%clk
00:13:27]} {[%emt 00:00:51]} Bd7 {[%clk 00:11:59]} {[%emt 00:01:13]} 12. g4
{[%clk 00:13:14]} {[%emt 00:00:16]} Qa5 {[%clk 00:10:40]} {[%emt 00:01:20]} 13.
Kb1 {[%clk 00:13:11]} {[%emt 00:00:09]} Rac8 {[%clk 00:07:04]} {[%emt
00:03:38]} 14. Nd5 {[%clk 00:12:06]} {[%emt 00:01:08]} Qxd2 {[%clk 00:05:53]}
{[%emt 00:01:13]} 15. Rxd2 {[%clk 00:12:06]} {[%emt 00:00:04]} e6 {[%emt
00:03:10]} 16. Ndc3 {[%clk 00:11:17]} {[%emt 00:00:05]} Be5 {[%clk 00:02:44]}
17. Nd4 {[%clk 00:10:38]} {[%emt 00:01:21]} a6 {[%clk 00:02:26]} 18. a3 {[%clk
00:10:38]} Rc7 {[%clk 00:02:26]} {[%emt 00:00:40]} 19. Be2 {[%clk 00:10:25]}
Rfc8 {[%clk 00:01:43]} {[%emt 00:01:02]} 20. Rd3 {[%clk 00:10:02]} Be8 {[%clk
00:01:17]} {[%emt 00:00:56]} 21. Rh2 {[%clk 00:10:03]} Bxh2 {[%clk 00:01:17]}
{[%emt 00:00:04]} 22. Bf3 {[%clk 00:09:59]} Be5 {[%clk 00:01:11]} {[%emt
00:00:16]} 23. g5 {[%clk 00:09:58]} Bg7 {[%clk 00:01:03]} {[%emt 00:00:14]} 24.
h4 {[%clk 00:09:59]} {[%emt 00:00:02]} Ne5 {[%clk 00:01:05]} {[%emt 00:00:01]}
25. Be2 {[%clk 00:09:45]} {[%emt 00:00:17]} Nxd3 {[%clk 00:01:03]} {[%emt
00:00:05]} 26. Bxd3 {[%clk 00:09:45]} {[%emt 00:00:03]} b5 {[%clk 00:00:49]}
{[%emt 00:00:17]} 27. Kc1 {[%clk 00:09:15]} {[%emt 00:00:33]} Bc6 {[%clk
00:00:30]} {[%emt 00:00:22]} 28. Nde2 {[%clk 00:09:05]} {[%emt 00:00:14]} d5
{[%clk 00:00:30]} {[%emt 00:00:03]} 29. Nd4 {[%clk 00:08:53]} {[%emt 00:00:15]}
dxe4 {[%clk 00:00:30]} {[%emt 00:00:03]} 30. Bxe4 {[%clk 00:08:50]} {[%emt
00:00:06]} Bxe4 {[%emt 00:00:03]} 31. Nxe4 {[%emt 00:00:01]} Bxd4 {[%clk
00:00:25]} {[%emt 00:00:03]} 32. exd4 {[%clk 00:08:33]} {[%emt 00:00:02]} Rxc2+
{[%clk 00:00:23]} 33. Kb1 Re2 {[%emt 00:00:10]} 34. Nf6+ {[%emt 00:00:02]} Kg7
{[%emt 00:00:02]} 35. Ka2 {[%clk 00:08:33]} {[%emt 00:00:03]} Rcc2 {[%clk
00:00:23]} {[%emt 00:00:04]} 36. Kb3 {[%clk 00:08:34]} {[%emt 00:00:03]} Rxb2+
{[%clk 00:00:23]} {[%emt 00:00:02]} 0-1

[Event "Jeux du Barreau 2019"]
[Site "Paris, France"]
[Date "2019.07.10"]
[Round "5.7"]
[White "Clair, Michael"]
[Black "Delage, Pierre Luc"]
[Result "1-0"]
[TimeControl "15+3"]
[WhiteElo "1726"]
[BlackElo "1399"]

1. e4 {[%clk 00:14:57]} {[%emt 00:00:07]} e5 {[%clk 00:15:01]} {[%emt
00:00:07]} 2. Nf3 {[%clk 00:14:54]} {[%emt 00:00:06]} Nf6 {[%clk 00:14:51]}
{[%emt 00:00:15]} 3. Nxe5 {[%clk 00:14:14]} {[%emt 00:00:42]} Qe7 {[%clk
00:14:49]} {[%emt 00:00:05]} 4. d4 {[%clk 00:13:06]} {[%emt 00:01:11]} d6
{[%clk 00:14:47]} {[%emt 00:00:05]} 5. Nf3 {[%clk 00:12:34]} {[%emt 00:00:34]}
Qxe4+ {[%clk 00:14:01]} {[%emt 00:00:50]} 6. Be2 {[%clk 00:12:22]} {[%emt
00:00:15]} Qg6 {[%clk 00:13:21]} {[%emt 00:00:43]} 7. Nc3 {[%clk 00:11:27]}
{[%emt 00:00:58]} Bf5 {[%clk 00:12:15]} {[%emt 00:01:09]} 8. Nh4 {[%clk
00:09:19]} {[%emt 00:02:11]} Bxc2 {[%clk 00:11:00]} {[%emt 00:01:18]} 9. Bb5+
{[%clk 00:08:12]} {[%emt 00:01:10]} c6 {[%clk 00:10:42]} {[%emt 00:00:21]} 10.
Qe2+ {[%clk 00:08:04]} {[%emt 00:00:11]} Be4 {[%clk 00:08:25]} {[%emt
00:02:20]} 11. Nxg6 {[%clk 00:08:01]} {[%emt 00:00:06]} hxg6 {[%clk 00:08:18]}
{[%emt 00:00:09]} 12. Nxe4 {[%clk 00:07:58]} {[%emt 00:00:08]} Be7 {[%clk
00:07:51]} {[%emt 00:00:30]} 13. Bg5 {[%clk 00:06:53]} {[%emt 00:01:08]} cxb5
{[%clk 00:07:28]} {[%emt 00:00:25]} 14. Nxf6+ {[%clk 00:06:48]} {[%emt
00:00:09]} gxf6 {[%clk 00:07:03]} {[%emt 00:00:27]} 15. Bxf6 {[%clk 00:06:48]}
{[%emt 00:00:03]} 1-0